[Event "XII Paracin Festival 2019"]
[Site "Paracin"]
[Date "2019.07.09"]
[Round "5.9"]
[White "Petrov, Martin"]
[Black "Apaydin, Fethi"]
[Result "1-0"]
[ECO "B41"]
[WhiteElo "2480"]
[BlackElo "2310"]
[Annotator "ChessBase"]
[PlyCount "109"]
[EventDate "2019.07.05"]
[EventType "swiss"]
[EventCountry "SRB"]
[SourceTitle "playchess.com"]
[Source "ChessBase"]
[SourceQuality "1"]
[TimeControl "5400+30"]

1. e4 {[%emt 0:00:29]} c5 2. Nf3 {[%emt 0:00:16]} e6 {[%emt 0:00:00]} 3. d4 {[%emt 0:00:08]} cxd4 {[%emt 0:00:03]} 4. Nxd4 {[%emt 0:00:03]} a6 {[%emt 0:00:05]} 5. c4 {[%emt 0:00:38]} Nf6 {[%emt 0:00:06]} 6. Nc3 {[%emt 0:00:04]} Qc7 {[%emt 0:00:03]} 7. a3 {[%emt 0:00:11]} b6 {[%emt 0:00:08]} 8. Be3 {[%emt 0:00:22]} Bb7 {[%emt 0:00:05]} 9. f3 {[%emt 0:00:08]} d6 {[%emt 0:00:08]} 10. Rc1 {[%emt 0:00:08]} Be7 {[%emt 0:00:21]} 11. Be2 {[%emt 0:00:06]} Nbd7 {[%emt 0:00:31]} 12. O-O {[%emt 0:00:14]} O-O {[%emt 0:00:06]} 13. b4 {[%emt 0:01:27]} Rac8 {[%emt 0:04:42]} 14. Qd2 {[%emt 0:00:07]} Qb8 {[%emt 0:05:10]} 15. Rfd1 {[%emt 0:00:05]} Rfe8 {[%emt 0:01:59]} 16. Kh1 {[%emt 0:02:37]} Bd8 {[%emt 0:03:09]} 17. Nb3 {[%emt 0:00:06]} Bc7 {[%emt 0:15:58]} 18. Bf4 {[%emt 0:00:06]} Ne5 {[%emt 0:10:36]} 19. Bxe5 {[%emt 0:00:06]} dxe5 {[%emt 0:00:03]} 20. c5 {[%emt 0:00:04]} b5 {[%emt 0:04:01]} 21. a4 {[%emt 0:00:58]} bxa4 {[%emt 0:02:57]} 22. Nxa4 {[%emt 0:00:06]} Bc6 {[%emt 0:08:48]} 23. Nb2 {[%emt 0:21:51]} Red8 {[%emt 0:20:36]} 24. Qc3 {[%emt 0:00:58]} Rd4 {[%emt 0:00:06]} 25. Nc4 {[%emt 0:24:22]} Rxd1+ {[%emt 0:12:29]} 26. Rxd1 {[%emt 0:00:10]} Bb5 {[%emt 0:01:20]} 27. Bf1 {[%emt 0:08:06]} Nh5 {[%emt 0:03:28]} 28. Kg1 {[%emt 0:10:03]} f5 {[%emt 0:03:18]} 29. Ne3 {[%emt 0:05:57]} fxe4 {[%emt 0:00:46]} 30. fxe4 {[%emt 0:00:18]} Nf6 {[%emt 0:00:16]} 31. Bc4 {[%emt 0:02:05]} Nxe4 {[%emt 0:02:04]} 32. Bxe6+ {[%emt 0:03:33]} Kh8 {[%emt 0:00:01]} 33. Qc2 {[%emt 0:00:05]} Re8 {[%emt 0:00:15]} 34. Qxe4 {[%emt 0:00:33]} Rxe6 {[%emt 0:00:05]} 35. Nd5 {[%emt 0:00:02]} Re8 {[%emt 0:02:14]} 36. Nd2 {[%emt 0:02:50]} Bc6 {[%emt 0:01:18]} 37. Nf3 {[%emt 0:00:05]} Qd8 {[%emt 0:00:41]} 38. h4 {[%emt 0:04:42]} h6 {[%emt 0:00:29]} 39. h5 {[%emt 0:00:02]} Bxd5 {[%emt 0:00:33]} 40. Rxd5 {[%emt 0:00:05]} Qf6 {[%emt 0:00:26]} 41. Rd7 {[%emt 0:03:16]} Re7 {[%emt 0:00:21]} 42. Rd2 {[%emt 0:04:03]} Qf4 {[%emt 0:00:42]} 43. Qxf4 {[%emt 0:03:23]} exf4 {[%emt 0:00:01]} 44. Nh4 {[%emt 0:00:07]} Kg8 {[%emt 0:00:39]} 45. Ng6 {[%emt 0:00:04]} Re4 {[%emt 0:00:49]} 46. Rd7 {[%emt 0:00:29]} Be5 {[%emt 0:00:13]} 47. Nxe5 {[%emt 0:00:13]} Rxe5 {[%emt 0:00:42]} 48. c6 {[%emt 0:00:04]} Re1+ {[%emt 0:00:21]} 49. Kf2 {[%emt 0:00:02]} Rc1 {[%emt 0:00:09]} 50. c7 {[%emt 0:00:03]} Kh7 {[%emt 0:00:06]} 51. Kf3 {[%emt 0:00:10]} Rc4 {[%emt 0:00:30]} 52. Re7 {[%emt 0:00:15]} a5 {[%emt 0:00:55]} 53. bxa5 {[%emt 0:00:05]} Rc3+ {[%emt 0:00:54]} 54. Kxf4 {[%emt 0:00:05]} Ra3 {[%emt 0:00:04]} 55. Rxg7+ {[%emt 0:00:09]} 1-0

[Event "XII Paracin Festival 2019"]
[Site "Paracin"]
[Date "2019.07.09"]
[Round "5.10"]
[White "Lee, Jun Hyeok"]
[Black "Peng, Xiongjian"]
[Result "0-1"]
[ECO "B07"]
[WhiteElo "2383"]
[BlackElo "2467"]
[Annotator "ChessBase"]
[PlyCount "92"]
[EventDate "2019.07.05"]
[EventType "swiss"]
[EventCountry "SRB"]
[SourceTitle "playchess.com"]
[Source "ChessBase"]
[SourceQuality "1"]
[TimeControl "5400+30"]

1. d4 {[%emt 0:00:00]} d6 {[%emt 0:00:00]} 2. e4 {[%emt 0:04:59]} Nf6 {[%emt 0:00:21]} 3. Nc3 {[%emt 0:00:13]} g6 {[%emt 0:00:09]} 4. Bg5 {[%emt 0:02:38]} Bg7 {[%emt 0:02:40]} 5. Qd2 {[%emt 0:01:27]} h6 {[%emt 0:00:39]} 6. Bh4 {[%emt 0:04:48]} O-O {[%emt 0:02:59]} 7. f4 {[%emt 0:04:32]} c6 {[%emt 0:04:48]} 8. Bd3 {[%emt 0:01:50]} b5 {[%emt 0:02:45]} 9. a3 {[%emt 0:00:48]} Re8 {[%emt 0:08:40]} 10. Nf3 {[%emt 0:10:11]} Bg4 {[%emt 0:01:11]} 11. O-O {[%emt 0:03:46]} Qb6 {[%emt 0:02:25]} 12. e5 {[%emt 0:02:25]} Nd5 {[%emt 0:11:57]} 13. Rae1 {[%emt 0:08:00]} Nd7 {[%emt 0:03:27]} 14. Nxd5 {[%emt 0:04:42]} cxd5 {[%emt 0:00:06]} 15. Qe3 {[%emt 0:01:14]} e6 {[%emt 0:02:48]} 16. Bf2 {[%emt 0:02:04]} a5 {[%emt 0:02:11]} 17. Nh4 {[%emt 0:00:42]} Qc6 {[%emt 0:04:57]} 18. h3 {[%emt 0:04:26]} Bf5 {[%emt 0:00:10]} 19. Nxf5 {[%emt 0:00:04]} exf5 {[%emt 0:00:08]} 20. g4 {[%emt 0:01:34]} fxg4 {[%emt 0:01:05]} 21. hxg4 {[%emt 0:00:07]} Nb6 {[%emt 0:00:18]} 22. b3 {[%emt 0:09:08]} a4 {[%emt 0:00:53]} 23. f5 {[%emt 0:00:46]} dxe5 {[%emt 0:04:01]} 24. dxe5 {[%emt 0:00:08]} Nd7 {[%emt 0:00:07]} 25. e6 {[%emt 0:01:42]} fxe6 {[%emt 0:00:34]} 26. fxg6 {[%emt 0:01:56]} e5 {[%emt 0:05:06]} 27. Bf5 {[%emt 0:09:19]} e4 {[%emt 0:00:29]} 28. Bg3 {[%emt 0:04:22]} Ne5 {[%emt 0:00:43]} 29. Bxe5 {[%emt 0:00:39]} Rxe5 {[%emt 0:00:07]} 30. g5 {[%emt 0:01:05]} Rf8 {[%emt 0:04:34]} 31. Qh3 {[%emt 0:00:21]} e3 {[%emt 0:04:44]} 32. Re2 {[%emt 0:05:17]} Rfxf5 {[%emt 0:04:22]} 33. Rxf5 {[%emt 0:00:26]} Qe6 {[%emt 0:00:05]} 34. Rxe5 {[%emt 0:08:57]} Qxh3 {[%emt 0:00:09]} 35. Re8+ {[%emt 0:00:02]} Bf8 {[%emt 0:00:05]} 36. R2xe3 {[%emt 0:01:20]} Qxe3+ {[%emt 0:02:34]} 37. Rxe3 {[%emt 0:00:00]} Bc5 {[%emt 0:00:06]} 38. bxa4 {[%emt 0:02:24]} Bxe3+ {[%emt 0:00:21]} 39. Kg2 {[%emt 0:00:17]} bxa4 {[%emt 0:00:07]} 40. gxh6 {[%emt 0:00:13]} Bc5 {[%emt 0:00:37]} 41. Kf3 {[%emt 0:00:14]} Bxa3 {[%emt 0:00:07]} 42. c4 {[%emt 0:00:43]} dxc4 {[%emt 0:00:12]} 43. Ke2 {[%emt 0:00:17]} Bc1 {[%emt 0:02:19]} 44. h7+ {[%emt 0:00:04]} Kg7 {[%emt 0:00:08]} 45. Kd1 {[%emt 0:00:02]} Bb2 {[%emt 0:00:09]} 46. Kc2 {[%emt 0:00:11]} Bd4 {[%emt 0:00:34]} 0-1

[Event "XII Paracin Festival 2019"]
[Site "Paracin"]
[Date "2019.07.09"]
[Round "5.11"]
[White "Stankovic, Milos"]
[Black "Koksal, Ege"]
[Result "1/2-1/2"]
[ECO "C42"]
[WhiteElo "2462"]
[BlackElo "2368"]
[Annotator "ChessBase"]
[PlyCount "117"]
[EventDate "2019.07.05"]
[EventType "swiss"]
[EventCountry "SRB"]
[SourceTitle "playchess.com"]
[Source "ChessBase"]
[SourceQuality "1"]
[TimeControl "5400+30"]

1. e4 {[%emt 0:00:00]} e5 {[%emt 0:01:43]} 2. Nf3 {[%emt 0:00:18]} Nf6 {[%emt 0:00:04]} 3. Nxe5 {[%emt 0:01:59]} d6 {[%emt 0:00:01]} 4. Nf3 {[%emt 0:00:45]} Nxe4 {[%emt 0:00:03]} 5. Bd3 {[%emt 0:00:42]} Nf6 {[%emt 0:07:54]} 6. O-O {[%emt 0:05:18]} Be7 {[%emt 0:00:02]} 7. h3 {[%emt 0:00:29]} O-O {[%emt 0:00:03]} 8. c3 {[%emt 0:00:45]} d5 {[%emt 0:02:57]} 9. Bc2 {[%emt 0:00:42]} Bd6 {[%emt 0:05:14]} 10. d4 {[%emt 0:02:07]} h6 {[%emt 0:03:35]} 11. Re1 {[%emt 0:02:31]} Re8 {[%emt 0:13:10]} 12. Nbd2 {[%emt 0:02:14]} Nbd7 {[%emt 0:02:12]} 13. Nf1 {[%emt 0:02:21]} Rxe1 {[%emt 0:18:24]} 14. Qxe1 {[%emt 0:02:07]} Qe8 {[%emt 0:00:27]} 15. Qxe8+ {[%emt 0:01:48]} Nxe8 {[%emt 0:00:03]} 16. Ne3 {[%emt 0:00:30]} Ndf6 {[%emt 0:01:37]} 17. Ne5 {[%emt 0:10:42]} c6 {[%emt 0:00:44]} 18. Nf5 {[%emt 0:01:57]} Bf8 {[%emt 0:01:22]} 19. Bf4 {[%emt 0:02:45]} Nd6 {[%emt 0:08:21]} 20. Ne3 {[%emt 0:10:44]} Be6 {[%emt 0:03:12]} 21. Re1 {[%emt 0:01:02]} Re8 {[%emt 0:01:03]} 22. f3 {[%emt 0:00:29]} Nd7 {[%emt 0:07:13]} 23. Nd3 {[%emt 0:07:32]} Nb6 {[%emt 0:05:32]} 24. Ne5 {[%emt 0:02:24]} Nd7 {[%emt 0:03:05]} 25. Bg3 {[%emt 0:05:58]} Be7 {[%emt 0:02:33]} 26. Kf1 {[%emt 0:05:50]} Nf8 {[%emt 0:00:40]} 27. N3g4 {[%emt 0:02:56]} h5 {[%emt 0:04:05]} 28. Ne3 {[%emt 0:00:22]} f6 {[%emt 0:01:27]} 29. Ng6 {[%emt 0:01:04]} Nxg6 {[%emt 0:00:51]} 30. Bxg6 {[%emt 0:00:08]} Bf7 {[%emt 0:01:10]} 31. Nxd5 {[%emt 0:06:08]} cxd5 {[%emt 0:00:06]} 32. Bxd6 {[%emt 0:00:08]} Bxg6 {[%emt 0:00:02]} 33. Bxe7 {[%emt 0:00:17]} Kf7 {[%emt 0:00:15]} 34. Bd6 {[%emt 0:00:18]} Rxe1+ {[%emt 0:00:21]} 35. Kxe1 {[%emt 0:00:09]} Bb1 {[%emt 0:00:34]} 36. a3 {[%emt 0:00:17]} Bc2 {[%emt 0:00:26]} 37. Kd2 {[%emt 0:00:13]} Bb3 {[%emt 0:00:06]} 38. h4 {[%emt 0:00:11]} Ke6 {[%emt 0:00:46]} 39. Bf8 {[%emt 0:00:17]} Kf7 {[%emt 0:00:36]} 40. Bc5 {[%emt 0:00:24]} b6 {[%emt 0:00:07]} 41. Bd6 {[%emt 0:00:05]} Ke6 {[%emt 0:00:21]} 42. Bb8 {[%emt 0:00:08]} a6 {[%emt 0:00:01]} 43. g4 {[%emt 0:00:28]} g6 {[%emt 0:00:51]} 44. Ke3 {[%emt 0:00:10]} b5 {[%emt 0:00:38]} 45. Kf4 {[%emt 0:00:09]} Bc4 {[%emt 0:00:25]} 46. Bc7 {[%emt 0:00:07]} Bb3 {[%emt 0:00:15]} 47. Bd8 {[%emt 0:00:14]} Bc4 {[%emt 0:00:14]} 48. g5 {[%emt 0:00:17]} f5 {[%emt 0:00:30]} 49. Bc7 {[%emt 0:00:07]} Bb3 {[%emt 0:00:05]} 50. Be5 {[%emt 0:00:05]} Bc4 {[%emt 0:00:06]} 51. Ke3 {[%emt 0:00:06]} Kd7 {[%emt 0:00:25]} 52. Kd2 {[%emt 0:00:07]} a5 {[%emt 0:00:58]} 53. Kc2 {[%emt 0:00:13]} a4 {[%emt 0:00:03]} 54. f4 {[%emt 0:00:08]} Kc8 {[%emt 0:00:09]} 55. Kd2 {[%emt 0:00:07]} Kd7 {[%emt 0:00:03]} 56. Kc2 {[%emt 0:00:05]} Kc8 {[%emt 0:00:04]} 57. Kd2 {[%emt 0:00:07]} Kd7 {[%emt 0:00:04]} 58. Kc2 {[%emt 0:00:09]} Kc8 {[%emt 0:00:07]} 59. Kd2 {[%emt 0:00:07]} 1/2-1/2

[Event "XII Paracin Festival 2019"]
[Site "Paracin"]
[Date "2019.07.09"]
[Round "5.12"]
[White "Abramovic, Bosko"]
[Black "Song, Raymond"]
[Result "0-1"]
[ECO "E68"]
[WhiteElo "2373"]
[BlackElo "2456"]
[Annotator "ChessBase"]
[PlyCount "112"]
[EventDate "2019.07.05"]
[EventType "swiss"]
[EventCountry "SRB"]
[SourceTitle "playchess.com"]
[Source "ChessBase"]
[SourceQuality "1"]
[TimeControl "5400+30"]

1. d4 Nf6 {[%emt 0:00:00]} 2. Nf3 {[%emt 0:06:14]} g6 {[%emt 0:00:00]} 3. g3 {[%emt 0:00:33]} Bg7 {[%emt 0:00:05]} 4. Bg2 {[%emt 0:00:06]} O-O {[%emt 0:00:06]} 5. O-O {[%emt 0:00:12]} d6 {[%emt 0:00:05]} 6. c4 {[%emt 0:00:22]} Nbd7 {[%emt 0:00:10]} 7. Nc3 {[%emt 0:00:20]} e5 {[%emt 0:00:07]} 8. e4 {[%emt 0:00:04]} exd4 {[%emt 0:00:04]} 9. Nxd4 {[%emt 0:00:06]} Re8 {[%emt 0:00:04]} 10. h3 {[%emt 0:00:55]} Nc5 {[%emt 0:00:05]} 11. Re1 {[%emt 0:01:07]} Bd7 {[%emt 0:00:05]} 12. b4 {[%emt 0:02:27]} Ne6 {[%emt 0:01:39]} 13. Be3 {[%emt 0:05:02]} a5 {[%emt 0:00:15]} 14. b5 {[%emt 0:02:31]} Nc5 {[%emt 0:05:54]} 15. f3 {[%emt 0:01:30]} Qc8 {[%emt 0:00:49]} 16. Kh2 {[%emt 0:02:25]} h5 {[%emt 0:05:27]} 17. h4 {[%emt 0:02:44]} Nh7 {[%emt 0:07:09]} 18. Qd2 {[%emt 0:01:05]} Be5 {[%emt 0:00:31]} 19. Rad1 {[%emt 0:00:47]} Qd8 {[%emt 0:03:20]} 20. Bf4 {[%emt 0:00:23]} a4 {[%emt 0:04:02]} 21. Bh3 {[%emt 0:02:07]} Bxh3 {[%emt 0:10:23]} 22. Kxh3 {[%emt 0:02:59]} c6 {[%emt 0:00:07]} 23. Kg2 {[%emt 0:01:13]} Qc8 {[%emt 0:01:00]} 24. Nce2 {[%emt 0:16:52]} Nf8 {[%emt 0:00:57]} 25. Rb1 {[%emt 0:01:02]} Nfd7 {[%emt 0:00:33]} 26. Nc2 {[%emt 0:01:39]} a3 {[%emt 0:09:31]} 27. Red1 {[%emt 0:02:38]} Ra4 {[%emt 0:01:33]} 28. Ne3 {[%emt 0:00:52]} Ra8 {[%emt 0:08:33]} 29. Nc2 {[%emt 0:04:24]} Ne6 {[%emt 0:02:30]} 30. Be3 {[%emt 0:01:10]} Ndc5 {[%emt 0:02:01]} 31. Ned4 {[%emt 0:01:11]} Na4 {[%emt 0:04:02]} 32. Nxa3 {[%emt 0:06:58]} Nc3 {[%emt 0:02:06]} 33. Qxc3 {[%emt 0:01:23]} c5 {[%emt 0:00:01]} 34. Nac2 {[%emt 0:03:44]} cxd4 {[%emt 0:00:21]} 35. Nxd4 {[%emt 0:00:42]} d5 {[%emt 0:01:49]} 36. Rd2 dxe4 {[%emt 0:00:38]} 37. fxe4 {[%emt 0:06:46]} Nc5 {[%emt 0:00:16]} 38. Qc2 {[%emt 0:01:34]} Bxg3 {[%emt 0:04:34]} 39. Nf5 {[%emt 0:05:40]} gxf5 {[%emt 0:01:08]} 40. Bxc5 {[%emt 0:00:10]} Qxc5 {[%emt 0:02:30]} 41. Rd5 {[%emt 0:04:04]} Qc7 {[%emt 0:01:36]} 42. Rxf5 {[%emt 0:02:46]} Bxh4 {[%emt 0:00:40]} 43. Rb3 {[%emt 0:03:14]} Re6 {[%emt 0:01:07]} 44. Kh3 {[%emt 0:00:48]} Be7 {[%emt 0:09:14]} 45. c5 {[%emt 0:01:21]} Rg6 {[%emt 0:00:55]} 46. Rbf3 {[%emt 0:00:32]} h4 {[%emt 0:00:35]} 47. e5 Qd7 {[%emt 0:01:03]} 48. Qc4 {[%emt 0:08:22]} Rf8 {[%emt 0:00:08]} 49. a4 {[%emt 0:00:19]} Qd1 {[%emt 0:00:26]} 50. Qf1 {[%emt 0:00:47]} Qxa4 {[%emt 0:00:11]} 51. e6 {[%emt 0:00:42]} Qg4+ {[%emt 0:00:24]} 52. Kh2 {[%emt 0:00:01]} Rxe6 {[%emt 0:01:42]} 53. Rxf7 {[%emt 0:00:06]} Rxf7 {[%emt 0:00:06]} 54. Rxf7 {[%emt 0:00:06]} Bxc5 {[%emt 0:01:09]} 55. Rf4 {[%emt 0:00:14]} Qg3+ {[%emt 0:00:40]} 56. Kh1 {[%emt 0:00:02]} Re1 {[%emt 0:00:39]} 0-1

[Event "XII Paracin Festival 2019"]
[Site "Paracin"]
[Date "2019.07.09"]
[Round "5.13"]
[White "Baglan, Esat"]
[Black "Cabarkapa, Novak"]
[Result "1/2-1/2"]
[ECO "B01"]
[WhiteElo "2336"]
[BlackElo "2444"]
[Annotator "NA"]
[PlyCount "153"]
[EventDate "2019.07.05"]
[EventType "swiss"]
[EventCountry "SRB"]
[SourceTitle "playchess.com"]
[Source "ChessBase"]
[SourceQuality "1"]
[TimeControl "5400+30"]

1. e4 {[%emt 0:00:00]} d5 {[%emt 0:00:00]} 2. exd5 {[%emt 0:00:00]} Qxd5 {[%emt 0:00:00]} 3. Nc3 {[%emt 0:00:00]} Qd8 {[%emt 0:00:00]} 4. d4 {[%emt 0:00:31]} Nf6 {[%emt 0:00:01]} 5. Nf3 {[%emt 0:01:04]} g6 {[%emt 0:00:19]} 6. Bc4 {[%emt 0:01:56]} Bg7 {[%emt 0:00:31]} 7. Ne5 {[%emt 0:07:40]} O-O {[%emt 0:02:16]} 8. O-O {[%emt 0:01:01]} a6 {[%emt 0:05:25]} 9. Re1 {[%emt 0:07:59]} b5 {[%emt 0:03:00]} 10. Bb3 {[%emt 0:00:07]} Bb7 {[%emt 0:01:15]} 11. Bg5 {[%emt 0:01:32]} Nc6 {[%emt 0:16:41]} 12. Nxc6 {[%emt 0:15:58]} Bxc6 {[%emt 0:00:05]} 13. d5 {[%emt 0:03:59]} Bb7 {[%emt 0:02:56]} 14. Qd2 {[%emt 0:02:01]} Qd7 {[%emt 0:12:57]} 15. Ne4 {[%emt 0:23:38]} Nxe4 {[%emt 0:04:03]} 16. Rxe4 {[%emt 0:01:23]} e6 {[%emt 0:12:22]} 17. Bh6 {[%emt 0:14:30]} Bxh6 {[%emt 0:05:26]} 18. Qxh6 {[%emt 0:01:46]} Bxd5 {[%emt 0:00:39]} 19. Rd1 {[%emt 0:05:48]} c6 {[%emt 0:04:36]} 20. Rd3 {[%emt 0:01:27]} f5 {[%emt 0:00:57]} 21. Re1 {[%emt 0:01:44]} Rfe8 {[%emt 0:08:11]} 22. Rde3 {[%emt 0:02:50]} c5 {[%emt 0:04:34]} 23. Bxd5 {[%emt 0:02:16]} exd5 {[%emt 0:00:25]} 24. h4 {[%emt 0:00:12]} d4 {[%emt 0:04:34]} 25. Re5 {[%emt 0:01:18]} Rxe5 {[%emt 0:00:25]} 26. Rxe5 {[%emt 0:00:08]} Re8 {[%emt 0:00:18]} 27. Qf4 {[%emt 0:00:43]} Rxe5 {[%emt 0:00:23]} 28. Qxe5 {[%emt 0:00:02]} c4 {[%emt 0:00:14]} 29. Qb8+ {[%emt 0:01:09]} Kg7 {[%emt 0:03:43]} 30. Qe5+ {[%emt 0:00:13]} Kf7 {[%emt 0:01:27]} 31. Qh8 {[%emt 0:00:14]} Ke6 {[%emt 0:00:56]} 32. Kf1 {[%emt 0:01:53]} Kd5 {[%emt 0:04:09]} 33. Qg8+ {[%emt 0:00:43]} Kc6 {[%emt 0:00:39]} 34. Ke1 {[%emt 0:00:38]} Kb7 {[%emt 0:00:54]} 35. g3 {[%emt 0:00:28]} Qe7+ {[%emt 0:00:56]} 36. Kd1 {[%emt 0:00:21]} Kb6 {[%emt 0:01:32]} 37. Qd5 {[%emt 0:00:35]} Qf6 {[%emt 0:00:22]} 38. a4 {[%emt 0:00:30]} d3 {[%emt 0:00:39]} 39. axb5 {[%emt 0:00:35]} dxc2+ {[%emt 0:00:27]} 40. Kxc2 {[%emt 0:00:05]} axb5 {[%emt 0:00:05]} 41. b3 {[%emt 0:00:39]} cxb3+ {[%emt 0:01:18]} 42. Kxb3 {[%emt 0:00:02]} Qe7 {[%emt 0:00:37]} 43. Qd4+ {[%emt 0:00:49]} Kc6 {[%emt 0:00:10]} 44. Qc3+ {[%emt 0:00:23]} Qc5 {[%emt 0:00:10]} 45. Qf6+ {[%emt 0:00:21]} Qd6 {[%emt 0:01:05]} 46. Qc3+ {[%emt 0:00:13]} Kb6 {[%emt 0:00:13]} 47. Qe3+ {[%emt 0:01:02]} Qc5 {[%emt 0:00:26]} 48. Qe6+ {[%emt 0:00:18]} Ka5 {[%emt 0:00:11]} 49. Qe1+ {[%emt 0:00:14]} Kb6 {[%emt 0:00:23]} 50. Qe6+ {[%emt 0:00:12]} Qc6 {[%emt 0:00:04]} 51. Qe3+ {[%emt 0:00:08]} Ka6 {[%emt 0:00:03]} 52. Qd4 {[%emt 0:01:07]} Qe6+ {[%emt 0:00:57]} 53. Ka3 {[%emt 0:00:41]} h5 {[%emt 0:00:11]} 54. Kb2 {[%emt 0:00:39]} Qb6 {[%emt 0:00:12]} 55. Qd2 {[%emt 0:00:48]} Qf6+ {[%emt 0:00:06]} 56. Kb3 {[%emt 0:00:43]} Qe5 {[%emt 0:01:05]} 57. f4 {[%emt 0:00:30]} Qe6+ {[%emt 0:00:22]} 58. Ka3 {[%emt 0:00:19]} Qc6 {[%emt 0:00:12]} 59. Kb2 {[%emt 0:00:34]} Kb7 {[%emt 0:01:25]} 60. Qd4 {[%emt 0:00:44]} Qg2+ {[%emt 0:00:26]} 61. Kb3 {[%emt 0:00:11]} Qf3+ {[%emt 0:01:09]} 62. Kb2 {[%emt 0:00:47]} Qe2+ {[%emt 0:01:06]} 63. Kb3 {[%emt 0:00:25]} Kc6 {[%emt 0:00:27]} 64. Qf6+ {[%emt 0:00:18]} Kd7 {[%emt 0:00:24]} 65. Qd4+ {[%emt 0:00:28]} Kc6 {[%emt 0:00:40]} 66. Qf6+ {[%emt 0:00:06]} Kc5 {[%emt 0:00:07]} 67. Qxg6 {[%emt 0:00:26]} Qd3+ {[%emt 0:00:10]} 68. Kb2 {[%emt 0:00:11]} b4 {[%emt 0:00:12]} 69. Qf7 {[%emt 0:01:38]} Kd4 {[%emt 0:00:57]} 70. Qe8 {[%emt 0:00:33]} Qc3+ {[%emt 0:01:11]} 71. Kb1 {[%emt 0:00:12]} Qd3+ {[%emt 0:00:32]} 72. Kb2 {[%emt 0:00:10]} Qd2+ {[%emt 0:00:29]} 73. Kb1 {[%emt 0:00:17]} Kc3 {[%emt 0:00:20]} 74. Qc8+ {[%emt 0:01:04]} Kd4 {[%emt 0:00:41]} 75. Qxf5 {[%emt 0:00:21]} Qe1+ {[%emt 0:00:12]} 76. Kb2 {[%emt 0:00:25]} Qxg3 {[%emt 0:00:20]} 77. Qe5+ {[%emt 0:00:40]} 1/2-1/2

[Event "XII Paracin Festival 2019"]
[Site "Paracin"]
[Date "2019.07.09"]
[Round "5.14"]
[White "Froewis, Georg"]
[Black "Nandhidhaa, P V"]
[Result "1-0"]
[ECO "A46"]
[WhiteElo "2434"]
[BlackElo "2259"]
[Annotator "NA"]
[PlyCount "107"]
[EventDate "2019.07.05"]
[EventType "swiss"]
[EventCountry "SRB"]
[SourceTitle "playchess.com"]
[Source "ChessBase"]
[SourceQuality "1"]
[TimeControl "5400+30"]

1. d4 {[%emt 0:00:00]} Nf6 {[%emt 0:01:40]} 2. Nf3 {[%emt 0:00:00]} d5 {[%emt 0:00:06]} 3. Nbd2 {[%emt 0:01:00]} e6 {[%emt 0:00:50]} 4. e3 {[%emt 0:00:28]} c5 {[%emt 0:00:17]} 5. c3 {[%emt 0:00:10]} Be7 {[%emt 0:04:02]} 6. Bd3 {[%emt 0:00:19]} O-O {[%emt 0:00:18]} 7. O-O {[%emt 0:02:33]} b6 {[%emt 0:00:56]} 8. Qe2 {[%emt 0:04:20]} Bb7 {[%emt 0:00:34]} 9. b3 {[%emt 0:00:56]} Nbd7 {[%emt 0:01:47]} 10. Bb2 {[%emt 0:00:23]} Rc8 {[%emt 0:00:49]} 11. c4 {[%emt 0:04:17]} Ne4 {[%emt 0:04:03]} 12. cxd5 {[%emt 0:05:36]} exd5 {[%emt 0:00:51]} 13. Rac1 {[%emt 0:01:05]} Bf6 {[%emt 0:01:11]} 14. Ne5 {[%emt 0:03:19]} g6 {[%emt 0:14:24]} 15. Nxe4 {[%emt 0:07:19]} dxe4 {[%emt 0:01:12]} 16. Bb5 {[%emt 0:00:05]} Nxe5 {[%emt 0:00:44]} 17. dxe5 {[%emt 0:00:02]} Bg7 {[%emt 0:00:11]} 18. Rcd1 {[%emt 0:00:52]} Qg5 {[%emt 0:01:59]} 19. Rd7 {[%emt 0:00:03]} Bc6 {[%emt 0:00:51]} 20. Bxc6 {[%emt 0:02:38]} Rxc6 {[%emt 0:00:01]} 21. f4 {[%emt 0:00:49]} exf3 {[%emt 0:06:15]} 22. Qxf3 {[%emt 0:00:11]} Rcc8 {[%emt 0:01:24]} 23. Rxf7 {[%emt 0:00:56]} Rxf7 {[%emt 0:00:21]} 24. Qxf7+ {[%emt 0:00:07]} Kh8 {[%emt 0:00:03]} 25. Rf4 {[%emt 0:10:35]} Qd8 {[%emt 0:08:43]} 26. Qb7 {[%emt 0:05:02]} Rc7 {[%emt 0:03:31]} 27. Qf3 {[%emt 0:01:32]} Kg8 {[%emt 0:01:04]} 28. Qe4 {[%emt 0:08:38]} Re7 {[%emt 0:01:55]} 29. Qc4+ {[%emt 0:02:22]} Kh8 {[%emt 0:00:07]} 30. Rf7 {[%emt 0:00:04]} Qd1+ {[%emt 0:05:06]} 31. Rf1 {[%emt 0:01:17]} Qd8 {[%emt 0:04:49]} 32. Qh4 {[%emt 0:04:20]} Kg8 {[%emt 0:05:58]} 33. h3 {[%emt 0:01:56]} Qd7 {[%emt 0:02:17]} 34. Qe4 {[%emt 0:01:49]} Qe8 {[%emt 0:00:41]} 35. Qd5+ {[%emt 0:08:49]} Kh8 {[%emt 0:00:17]} 36. Rf6 {[%emt 0:08:09]} Bxf6 {[%emt 0:03:14]} 37. exf6 {[%emt 0:00:01]} Rf7 {[%emt 0:00:10]} 38. e4 {[%emt 0:00:02]} Kg8 {[%emt 0:00:56]} 39. e5 {[%emt 0:00:02]} Qd7 {[%emt 0:00:06]} 40. Qc4 {[%emt 0:00:08]} Kf8 {[%emt 0:03:53]} 41. e6 {[%emt 0:04:11]} Qd1+ {[%emt 0:00:09]} 42. Qf1 {[%emt 0:00:30]} Qxf1+ {[%emt 0:01:36]} 43. Kxf1 {[%emt 0:00:01]} Rc7 {[%emt 0:00:26]} 44. Bc1 {[%emt 0:00:05]} Rc8 {[%emt 0:02:27]} 45. Bh6+ {[%emt 0:00:07]} Ke8 {[%emt 0:00:07]} 46. Ke2 {[%emt 0:00:17]} b5 {[%emt 0:01:23]} 47. Kd3 {[%emt 0:00:43]} a6 {[%emt 0:00:34]} 48. Kc3 {[%emt 0:01:56]} Ra8 {[%emt 0:01:44]} 49. Bf4 {[%emt 0:00:39]} Kf8 {[%emt 0:02:41]} 50. Bd6+ {[%emt 0:00:05]} Kg8 {[%emt 0:00:03]} 51. Bxc5 {[%emt 0:00:09]} a5 {[%emt 0:00:46]} 52. a4 {[%emt 0:00:35]} bxa4 {[%emt 0:00:43]} 53. bxa4 {[%emt 0:00:02]} Rc8 {[%emt 0:00:18]} 54. Kc4 {[%emt 0:00:07]} 1-0

[Event "XII Paracin Festival 2019"]
[Site "Paracin"]
[Date "2019.07.09"]
[Round "5.15"]
[White "Maksimovic, Bojan"]
[Black "Lajthajm, Borko"]
[Result "0-1"]
[ECO "B07"]
[WhiteElo "2326"]
[BlackElo "2424"]
[Annotator "NA"]
[PlyCount "42"]
[EventDate "2019.07.05"]
[EventType "swiss"]
[EventCountry "SRB"]
[SourceTitle "playchess.com"]
[Source "ChessBase"]
[SourceQuality "1"]
[TimeControl "5400+30"]

1. e4 {[%emt 0:00:00]} d6 {[%emt 0:00:00]} 2. d4 {[%emt 0:00:00]} Nf6 {[%emt 0:00:00]} 3. Nc3 {[%emt 0:00:00]} c6 {[%emt 0:00:00]} 4. f4 {[%emt 0:02:51]} Qa5 {[%emt 0:00:50]} 5. Bd2 {[%emt 0:03:49]} Qb6 {[%emt 0:00:10]} 6. Nf3 {[%emt 0:02:22]} Bg4 {[%emt 0:00:07]} 7. h3 {[%emt 0:02:30]} Bxf3 {[%emt 0:01:42]} 8. Qxf3 {[%emt 0:01:00]} Qxd4 {[%emt 0:02:25]} 9. O-O-O {[%emt 0:00:32]} Nbd7 {[%emt 0:01:02]} 10. g4 {[%emt 0:15:10]} h6 {[%emt 0:00:33]} 11. Be3 {[%emt 0:19:51]} Qb4 {[%emt 0:00:56]} 12. e5 {[%emt 0:01:48]} dxe5 {[%emt 0:00:21]} 13. fxe5 {[%emt 0:00:48]} Nxe5 {[%emt 0:00:13]} 14. Qg3 {[%emt 0:01:32]} Nfd7 {[%emt 0:04:47]} 15. Bf4 {[%emt 0:12:04]} f6 {[%emt 0:03:03]} 16. Bxe5 {[%emt 0:03:10]} Nxe5 {[%emt 0:00:20]} 17. Bd3 {[%emt 0:00:42]} e6 {[%emt 0:01:23]} 18. a3 {[%emt 0:14:18]} Qa5 {[%emt 0:00:46]} 19. Rhe1 {[%emt 0:03:35]} O-O-O {[%emt 0:00:29]} 20. Ne4 {[%emt 0:01:38]} Be7 {[%emt 0:02:03]} 21. Bf1 {[%emt 0:01:08]} Rd5 {[%emt 0:01:33]} 0-1